{"text_format":"1","workbook":"xlsx","n_sheets":3,"sheets":["Munka1","Munka2","Munka3"],"not_rendered":{"charts":0,"images":0,"macros":0,"external_links":0,"defined_names":0,"comments":0,"pivot_tables":0},"unopened":[],"bounds":{"document_bytes":16777216,"sheet_cells":100000,"rows_first":2000,"rows_last":500,"rows_between":2000,"halvings":0,"cell_chars":16384,"cell_head_chars":4096},"cells_cut":0,"cells_raw":0,"read":"whole","date_system":"1900"}

{"sheet":"Munka1","index":0,"n_rows":36,"n_cols":9,"rows_kept":36,"cut":false,"hidden":false,"merged":[]}
[null,null,null,null,null,null,"                                         A  3/2012.(IV.26.)rend.5.§.(g.)pontban"]
[null,null,null,null,null,null,"                                                              megállapított 9.sz.melléklet"]
[null,null,null,null,null,"KIMUTATÁS"]
[null,null,null,"              Nyírkarász község Önkormányzat 2011. évi vagyona"]
[null,null,null,null,null,null,null,null,"    ezer Ft-ban"]
["Eszközök",null,"Állományi értéke ",null,null,null,"Források","Állományi érték"]
[null,null,null,"Előző évi","Tárgyévi",null,null,"Előző évi","Tárgyévi"]
["Szellemi termékek",null,null,4332,7371,null,"Induló tőke",38903,38903]
["Immat.javak össz.",null,null,4332,7371,null,"Tőkeváltozások",883619,991916]
["Ingatlanok  ",null,null,990583,960762,null,"Saját tőke összesen: ",{"$f":"SUM(H8:H9)","v":922522},{"$f":"SUM(I8:I9)","v":1030819}]
["Gépek,berendezések",null,null,17656,25250,null,"Költségvetési tartalék elszámolás",25267,23339]
["felszerelések",null,null,null,null,null,"Ebből:"]
["Járművek",null,null,23067,17978,null,"     -tárgyévi tart.",25267,23339]
["Beruházások,felújítások"]
["Beruházásra adott előleg",null,null,13660,13660,null,"Költségvetési"]
["Tárgyi eszközök össz.",null,null,{"$f":"SUM(D10:D15)","v":1044966},{"$f":"SUM(E10:E15)","v":1017650},null,"tartalék összesen:",25267,23339]
["Üzemeltetésre,vagyonk adott eszk",null,null,null,107567]
["Anyagok",null,null,34,5,null,"Beruházási és fejleszt.hitel",2897,1752]
["Készletek össz.",null,null,34,5,null,"Hosszú lejárat.köt.össz.",2897,1752]
["Adósok",null,null,9704,12899,null,"Rövid lejáratú hitelek",97968,76661]
["Követelések áruszáll.és szolgált.",null,null,404,266,null,"Szállítói kötelezettségek",33586,32975]
["Egyéb követelések",null,null,null,null,null,"Egyéb rövid lejár.kötelezettségek",2467,1855]
["Követelések össz.",null,null,{"$f":"SUM(D20:D22)","v":10108},{"$f":"SUM(E20:E22)","v":13165},null,"    iparűzési adó feltöltés"]
["Pénztárak és betétkönyvek",null,null,427,1285,null,"    helyi adó túlfizetés",2467,1855]
["Költségvetési bankszámlák",null,null,9767,7001,null,"    támogatási program előlege"]
[null,null,null,null,null,null,"    tárgyévet terh.rövid lejár.kötelezettség"]
["Pénzeszközök",null,null,null,null,null,"    egyéb különféle kötelezettségek",null,1696]
["összesen:",null,null,{"$f":"SUM(D24:D27)","v":10194},{"$f":"SUM(E24:E27)","v":8286},null,"Rövidlejáratu kötelezettségek",{"$f":"SUM(H20+H21+H22)","v":134021},{"$f":"SUM(I20+I21+I22+I27)","v":113187}]
["Költségv.aktív függő elszámolások",null,null,27472,52657,null,"Költségvetési"]
["Költségv.kívüli aktív pü.elszámolások",null,null,null,null,null,"passzív függő elsz.",12399,37604]
["Egyéb aktív pü-i",null,null,null,null,null,"Egyéb passzív pü-i"]
["elszámámolás összesen:",null,null,{"$f":"SUM(D29:D31)","v":27472},{"$f":"SUM(E29:E31)","v":52657},null,"elszámolások:",12399,37604]
["Forgóeszközök",null,null,null,null,null,"Kötelezettségek"]
["összesen:",null,null,{"$f":"SUM(D19+D23+D28+D32)","v":47808},{"$f":"SUM(E19+E23+E28+E32)","v":74113},null,"összesen:",{"$f":"SUM(H19+H28+H32)","v":149317},{"$f":"SUM(I19+I28+I32)","v":152543}]
[]
["Eszközök összesen:",null,null,{"$f":"SUM(D34+D16+D9)","v":1097106},{"$f":"SUM(E9+E16+E17+E34)","v":1206701},null,"Források összesen:",{"$f":"SUM(H10+H16+H34)","v":1097106},{"$f":"SUM(I10+I16+I34)","v":1206701}]

{"sheet":"Munka2","index":1,"n_rows":0,"n_cols":0,"rows_kept":0,"cut":false,"hidden":false,"merged":[]}

{"sheet":"Munka3","index":2,"n_rows":0,"n_cols":0,"rows_kept":0,"cut":false,"hidden":false,"merged":[]}